bitfinex/quotes_BTCUSD_20230117
["timestamp","ask_amount","ask_price","bid_price","bid_amount"]
[1673988708087,0.10755875,21308.0,21307.0,0.940658]
[1673988708877,0.10755875,21308.0,21307.0,0.469329]
[1673988709129,0.10755875,21308.0,21307.0,0.938658]
[1673988709905,0.10755875,21308.0,21307.0,0.469329]
[1673988710689,0.10755875,21308.0,21307.0,0.938658]
[1673988712207,0.10755875,21308.0,21307.0,0.469329]
[1673988713053,0.10755875,21308.0,21307.0,0.938658]
[1673988715106,0.10755875,21308.0,21307.0,1.259661]
[1673988716611,0.10755875,21308.0,21307.0,0.938658]
[1673988717384,0.10755875,21308.0,21307.0,1.259661]
[1673988717880,0.10755875,21308.0,21307.0,0.938658]
[1673988718845,0.10755875,21308.0,21307.0,1.259661]
[1673988720333,0.10755875,21308.0,21307.0,1.80818322]
[1673988720599,0.10755875,21308.0,21307.0,2.10818322]
[1673988720865,0.10755875,21308.0,21307.0,2.82842996]
[1673988722704,0.03255875,21308.0,21307.0,1.95818322]
[1673988723504,0.03255875,21308.0,21307.0,2.25818322]
[1673988724547,0.06355875,21308.0,21307.0,2.26118322]
[1673988724804,0.06355875,21308.0,21307.0,2.96451851]
[1673988726901,0.06355875,21308.0,21307.0,2.82503575]
[1673988727132,0.06355875,21308.0,21307.0,2.96451851]
[1673988727633,0.03595875,21308.0,21307.0,2.82503575]
[1673988727896,0.03595875,21308.0,21307.0,3.24880777]
[1673988728418,0.03595875,21308.0,21307.0,3.03931851]
[1673988728665,0.03595875,21308.0,21307.0,3.3902246]
[1673988729163,8.75e-06,21308.0,21307.0,3.86974775]
[1673988729916,3.745e-05,21311.0,21307.0,4.26615297]
[1673988730189,0.00366959,21314.0,21310.0,0.54511999]
[1673988730436,0.00366959,21314.0,21313.0,0.149]
[1673988730680,0.00366959,21314.0,21313.0,3.3315702]
[1673988731168,0.00366959,21314.0,21313.0,3.73452955]
[1673988731169,6.959e-05,21314.0,21313.0,3.73452955]
[1673988731424,0.00365698,21317.0,21314.0,0.15]
[1673988731675,0.00365698,21317.0,21316.0,0.0748]
[1673988731918,0.00365698,21317.0,21316.0,1.634065]
[1673988732675,0.00665698,21317.0,21316.0,1.837065]
[1673988733170,0.00365698,21317.0,21316.0,2.27531143]
[1673988733422,0.00665698,21317.0,21316.0,2.40311143]
[1673988736247,0.00665698,21317.0,21316.0,1.87831143]
[1673988737756,0.00665698,21317.0,21316.0,2.17831143]
[1673988738486,0.00665698,21317.0,21316.0,1.87831143]
[1673988739038,0.00665698,21317.0,21316.0,1.86831143]
[1673988740265,0.00665698,21317.0,21316.0,1.79351143]
[1673988740770,0.00665698,21317.0,21316.0,2.09351143]
[1673988741040,0.00665698,21317.0,21316.0,2.16791143]
[1673988741582,0.00665698,21317.0,21316.0,1.86791143]
[1673988741862,0.00665698,21317.0,21316.0,1.79351143]
[1673988742447,0.72283529,21317.0,21316.0,0.053]
[1673988742699,0.57464529,21317.0,21316.0,0.053]
[1673988743794,1.58766329,21317.0,21316.0,1e-08]
[1673988744048,2.12445673,21317.0,21310.0,0.469245]
[1673988744302,0.76040356,21316.0,21310.0,0.469245]
[1673988744593,0.790073,21315.0,21311.0,0.469225]
[1673988744883,0.32158881,21314.0,21311.0,0.938466]
[1673988745141,0.320919,21313.0,21311.0,0.938466]
[1673988745395,0.00066981,21314.0,21311.0,0.938466]
[1673988745649,0.00066981,21314.0,21311.0,0.469241]
[1673988745910,0.320919,21313.0,21311.0,0.46924]
[1673988746172,0.90858626,21316.0,21311.0,0.46924]
[1673988746434,0.46914,21316.0,21311.0,0.46924]
[1673988746677,0.320919,21315.0,21311.0,0.46924]
[1673988746927,0.41258881,21314.0,21311.0,0.938481]
[1673988747177,0.320919,21313.0,21310.0,1.33113306]
[1673988747483,0.00066981,21314.0,21310.0,1.33113306]
[1673988747957,0.09166981,21314.0,21310.0,1.33113306]
[1673988748207,0.00066981,21314.0,21310.0,1.33113306]
[1673988748462,0.09166981,21314.0,21310.0,1.33113306]
[1673988748722,0.09166981,21314.0,21310.0,1.32470306]
[1673988750285,0.091,21314.0,21310.0,1.32470306]
[1673988754506,0.00066981,21313.0,21310.0,1.32470306]
[1673988754762,0.091,21314.0,21310.0,1.32470306]
[1673988755283,1.13414856,21315.0,21310.0,1.32470306]
[1673988755553,0.69474091,21315.0,21310.0,1.32470306]
[1673988756290,0.091,21314.0,21310.0,1.32470306]
[1673988756550,1.134187,21315.0,21310.0,1.32470306]
[1673988756819,0.78574091,21315.0,21310.0,1.32470306]
[1673988757038,0.69474091,21315.0,21310.0,1.32470306]
[1673988757293,0.091,21314.0,21310.0,1.32470306]
[1673988757548,0.69474091,21315.0,21310.0,1.32470306]
[1673988757869,0.31657591,21315.0,21310.0,0.93206]
[1673988758053,0.31657591,21315.0,21309.0,0.46927]
[1673988758054,0.28226319,21313.0,21309.0,0.46927]
[1673988758307,1.23018094,21312.0,21308.0,0.469288]
[1673988758560,0.320919,21311.0,21308.0,0.469288]
[1673988758815,0.320919,21310.0,21307.0,0.01924211]
[1673988759116,0.320919,21309.0,21307.0,0.01924211]
[1673988759334,0.320919,21308.0,21307.0,0.01924211]
[1673988759564,0.00066981,21309.0,21307.0,0.01924211]
[1673988760068,0.320919,21308.0,21307.0,0.01924211]
[1673988760332,0.09266981,21309.0,21307.0,0.01924211]
[1673988760823,0.00066981,21309.0,21307.0,0.01924211]
[1673988761076,0.091,21308.0,21307.0,0.01924211]
[1673988761330,0.411919,21308.0,21307.0,0.01924211]
[1673988761601,0.091,21308.0,21307.0,0.01924211]
[1673988762131,0.092,21309.0,21307.0,0.01924211]
[1673988762378,1.19786703,21311.0,21307.0,0.01924211]
[1673988762626,0.091,21308.0,21307.0,0.01924211]
[1673988762915,0.320919,21310.0,21307.0,0.01924211]
[1673988762916,0.90875756,21310.0,21307.0,0.01924211]
[1673988763152,0.32158881,21309.0,21307.0,0.01924211]
[1673988763367,0.320919,21308.0,21307.0,0.01924211]
[1673988763620,0.65382603,21311.0,21307.0,0.48856111]
[1673988763891,0.091,21308.0,21307.0,0.95789011]
[1673988764902,0.21434147,21311.0,21307.0,0.95789011]
[1673988765156,0.00066981,21310.0,21307.0,0.95789011]
[1673988765693,0.091,21308.0,21307.0,0.95789011]
[1673988765927,0.21434147,21311.0,21307.0,0.95789011]
[1673988766179,0.091,21310.0,21307.0,0.95789011]
[1673988766435,0.091,21310.0,21308.0,8.445e-05]
[1673988766748,0.00066981,21310.0,21308.0,0.938598]
[1673988766974,0.21434147,21311.0,21308.0,0.938598]
[1673988768711,0.30634147,21311.0,21308.0,0.938598]
[1673988770783,0.00066981,21310.0,21308.0,0.938598]
[1673988771279,0.00066981,21310.0,21308.0,0.469292]
[1673988771538,0.320919,21309.0,21308.0,0.469292]
[1673988772312,0.00066981,21310.0,21308.0,0.469292]
[1673988772564,0.092,21309.0,21308.0,0.469292]
[1673988773357,0.412919,21309.0,21308.0,0.469292]
[1673988773603,0.412919,21309.0,21307.0,0.48857111]
[1673988773854,0.320919,21308.0,21307.0,0.48857111]
[1673988774109,0.320919,21308.0,21307.0,0.01924211]
[1673988774397,0.32083202,21308.0,21307.0,0.01924211]
[1673988775382,0.41183202,21308.0,21307.0,0.01924211]
[1673988776143,1.35044602,21308.0,21307.0,0.01924211]
[1673988776392,1.42504602,21308.0,21307.0,0.01924211]
[1673988776662,1.86453058,21308.0,21307.0,1e-08]
[1673988777167,1.42504602,21308.0,21307.0,1e-08]
[1673988777667,1.33404602,21308.0,21307.0,1e-08]
[1673988777933,1.77353058,21308.0,21307.0,1e-08]
[1673988778221,1.78203058,21308.0,21307.0,1e-08]
[1673988778469,1.87403058,21308.0,21307.0,1e-08]
[1673988778713,1.78203058,21308.0,21307.0,1e-08]
[1673988778961,1.87403058,21308.0,21307.0,1e-08]
[1673988780004,1.78203058,21308.0,21307.0,1e-08]
[1673988780254,1.43454602,21308.0,21307.0,1e-08]
[1673988780509,1.34254602,21308.0,21307.0,1e-08]
[1673988780777,1.43454602,21308.0,21307.0,1e-08]
[1673988781553,1.87403058,21308.0,21307.0,1e-08]
[1673988781813,1.43454602,21308.0,21307.0,1e-08]
[1673988783404,0.42133202,21308.0,21307.0,1e-08]
[1673988783855,0.1005,21308.0,21307.0,1e-08]
[1673988784621,0.0085,21308.0,21307.0,1e-08]
[1673988784868,0.421487,21308.0,21307.0,1e-08]
[1673988785886,0.329487,21308.0,21307.0,1e-08]
[1673988786137,0.421487,21308.0,21307.0,1e-08]
[1673988786379,0.320987,21308.0,21307.0,0.46932901]
[1673988786644,0.092,21308.0,21307.0,0.93865801]
[1673988786897,0.875448,21311.0,21307.0,0.93865801]
[1673988787151,0.092,21308.0,21307.0,0.93865801]
[1673988787429,0.469263,21310.0,21307.0,0.46932901]
[1673988787659,0.092,21308.0,21307.0,0.46932901]
[1673988787900,1.37800056,21311.0,21307.0,0.46932901]
[1673988788143,0.938516,21311.0,21307.0,0.46932901]
[1673988788382,0.938516,21311.0,21307.0,0.93865801]
[1673988788682,1.07787946,21311.0,21307.0,0.93865801]
[1673988788892,0.092,21308.0,21307.0,0.93865801]
[1673988789147,1.37800056,21311.0,21307.0,0.93865801]
[1673988789398,0.092,21311.0,21307.0,0.93865801]
[1673988790139,0.00066981,21310.0,21307.0,1e-08]
[1673988790397,0.57884802,21312.0,21307.0,0.93865801]
[1673988790398,0.0085,21311.0,21307.0,0.93865801]
[1673988790886,1.039003,21311.0,21307.0,0.93865801]
[1673988791394,0.32165681,21310.0,21307.0,0.93865801]
[1673988791641,0.00066981,21310.0,21307.0,0.93865801]
[1673988791928,0.09266981,21310.0,21307.0,0.93865801]
[1673988792681,0.092,21310.0,21307.0,0.93865801]
[1673988793187,0.00066981,21309.0,21307.0,0.93865801]
[1673988793470,0.092,21310.0,21307.0,0.93865801]
[1673988795742,0.320987,21309.0,21307.0,0.93865801]
[1673988796065,0.00066981,21309.0,21307.0,0.93865801]
[1673988796279,0.06833521,21310.0,21307.0,0.93865801]
[1673988796519,0.20769867,21310.0,21307.0,0.93865801]
[1673988797364,0.00053232,21309.0,21307.0,0.93865801]
[1673988798093,0.07053232,21309.0,21307.0,0.94065801]
[1673988798645,0.07053232,21309.0,21307.0,0.00200001]
[1673988799113,0.320987,21308.0,21307.0,0.00200001]
[1673988799373,0.790294,21308.0,21307.0,1e-08]
[1673988799633,0.790294,21308.0,21307.0,0.00200001]
[1673988800156,2.12902704,21308.0,21307.0,0.00200001]
[1673988800403,2.68363657,21308.0,21307.0,0.00200001]
[1673988800655,3.20722427,21308.0,21307.0,1e-08]
[1673988800905,3.29622427,21308.0,21307.0,1e-08]
[1673988801183,3.07263657,21308.0,21307.0,1e-08]
[1673988801463,3.07263657,21308.0,21301.0,0.01372167]
[1673988801464,5.999e-05,21306.0,21301.0,0.01372167]
[1673988801698,0.0748,21304.0,21301.0,0.01372167]
[1673988801973,0.0745,21302.0,21301.0,0.01372167]
[1673988802230,1.81356633,21302.0,21301.0,0.01372167]
[1673988802515,1.78734027,21302.0,21301.0,0.01372167]
[1673988802734,1.61979524,21302.0,21301.0,0.01372167]
[1673988803005,1.50812199,21302.0,21301.0,0.01372167]
[1673988803255,1.50812199,21302.0,21301.0,0.01208052]
[1673988803508,1.17376656,21302.0,21301.0,0.01208052]
[1673988803818,0.52665431,21302.0,21301.0,0.01208052]
[1673988804064,0.61765431,21302.0,21301.0,0.01208052]
[1673988804301,0.61788129,21302.0,21301.0,0.01208052]
[1673988806376,1.08732029,21302.0,21301.0,0.01208052]
[1673988806630,1.08732029,21302.0,21300.0,0.3174317]
[1673988806877,0.329487,21301.0,21300.0,0.3174317]
[1673988807139,1.23640074,21301.0,21300.0,0.3174317]
[1673988807405,0.798948,21301.0,21300.0,0.3174317]
[1673988808202,0.32967034,21301.0,21300.0,0.3174317]
[1673988809270,0.42067034,21301.0,21300.0,0.3174317]
[1673988810280,0.00018334,21301.0,21300.0,0.3174317]
[1673988810535,0.09118334,21301.0,21300.0,0.3174317]
[1673988810788,1.26009234,21301.0,21300.0,0.3174317]
[1673988811042,0.881448,21301.0,21300.0,0.3174317]
[1673988811558,0.329487,21301.0,21300.0,0.3174317]
[1673988811845,0.420487,21301.0,21300.0,0.3174317]
[1673988812085,0.411987,21301.0,21300.0,0.3174317]
[1673988813424,0.329487,21301.0,21300.0,0.3174317]
[1673988813682,0.420487,21301.0,21300.0,0.3174317]
[1673988814986,0.889948,21301.0,21300.0,0.3174317]
[1673988815261,0.420487,21301.0,21300.0,0.3174317]
[1673988815556,0.411987,21301.0,21300.0,0.3174317]
[1673988815757,0.091,21301.0,21300.0,0.3174317]
[1673988816827,0.19716731,21302.0,21300.0,0.3174317]
[1673988817327,0.091,21301.0,21300.0,0.31735246]
[1673988817592,0.19716731,21302.0,21300.0,0.31735246]
[1673988817847,0.28816731,21302.0,21300.0,0.31735246]
[1673988818100,0.329487,21301.0,21300.0,0.31735246]
[1673988818869,0.798948,21301.0,21300.0,0.31735246]
[1673988819127,0.889948,21301.0,21300.0,0.31735246]
[1673988819421,0.798948,21301.0,21300.0,0.31735246]
[1673988819651,0.420487,21301.0,21300.0,0.31735246]
[1673988819900,0.329487,21301.0,21300.0,0.31735246]
[1673988820163,0.420487,21301.0,21300.0,0.31735246]
[1673988822882,0.889948,21301.0,21300.0,0.31735246]
[1673988823412,1.359409,21301.0,21300.0,0.31735246]
[1673988825134,1.268409,21301.0,21300.0,0.31735246]
[1673988825386,1.359409,21301.0,21300.0,0.31735246]
[1673988825630,1.268409,21301.0,21300.0,0.31735246]
[1673988825894,1.359409,21301.0,21300.0,0.31735246]
[1673988826147,1.268409,21301.0,21300.0,0.31735246]
[1673988826412,1.79189305,21301.0,21300.0,0.31735246]
[1673988826671,1.86659305,21301.0,21300.0,0.31735246]
[1673988827714,1.77559305,21301.0,21300.0,0.31735246]
[1673988827959,2.16659305,21301.0,21300.0,0.31735246]
[1673988828302,2.07559305,21301.0,21300.0,0.31735246]
[1673988828486,2.16659305,21301.0,21300.0,0.31735246]
[1673988829204,1.77559305,21301.0,21300.0,0.31735246]
[1673988829493,1.86659305,21301.0,21300.0,0.31735246]
[1673988829715,2.16659305,21301.0,21300.0,0.31735246]
[1673988830231,0.40155615,21299.0,21298.0,0.02141457]
[1673988830482,3.75354574,21299.0,21298.0,0.02141457]
[1673988830748,3.49214177,21299.0,21298.0,0.02141457]
[1673988830990,3.77136005,21299.0,21298.0,0.02141457]
[1673988831227,3.77136005,21299.0,21293.0,0.02356005]
[1673988831492,0.0748,21294.0,21293.0,0.00906024]
[1673988831741,0.320987,21294.0,21293.0,0.00906024]
[1673988833845,0.091,21294.0,21293.0,0.00906024]
[1673988834658,0.881602,21294.0,21293.0,0.00906024]
[1673988834856,0.890102,21294.0,21293.0,0.00906024]
[1673988836622,0.420487,21294.0,21293.0,0.00906024]
[1673988836874,0.469596,21295.0,21293.0,0.00906024]
[1673988837125,0.091,21294.0,21293.0,0.00906024]
[1673988837372,0.65089803,21296.0,21293.0,0.00906024]
[1673988837619,0.091,21294.0,21293.0,0.00906024]
[1673988840397,0.091,21294.0,21293.0,0.08708024]
[1673988841152,0.091,21294.0,21293.0,0.00906024]
[1673988842137,0.091,21294.0,21293.0,0.47869724]
[1673988842392,0.091,21294.0,21293.0,0.00906024]
[1673988843161,0.420487,21294.0,21293.0,0.00906024]
[1673988843423,0.091,21294.0,21293.0,0.00906024]
[1673988844429,0.881602,21294.0,21292.0,0.02255173]
[1673988844716,0.320987,21293.0,21292.0,0.02255173]
[1673988844956,0.790624,21293.0,21292.0,0.02255173]
[1673988845443,0.469637,21293.0,21292.0,0.02255173]
[1673988845692,1.44493027,21293.0,21292.0,0.02255173]
[1673988846925,1.53593027,21293.0,21292.0,0.02255173]
[1673988848213,1.97422525,21293.0,21292.0,0.02255173]
[1673988848478,2.51904613,21293.0,21292.0,0.02255173]
[1673988848736,2.31004613,21293.0,21292.0,0.02255173]
[1673988849226,2.77759116,21293.0,21292.0,0.02255173]
[1673988849480,0.02665756,21291.0,21284.0,0.02268226]
[1673988849765,1.409184,21289.0,21284.0,0.02268226]
[1673988849991,0.76778198,21288.0,21284.0,0.02268226]
[1673988850230,0.320987,21287.0,21284.0,0.02268226]
[1673988850485,0.329487,21286.0,21284.0,0.02268226]
[1673988850759,0.44679498,21288.0,21284.0,0.09748226]
[1673988851050,0.0085,21288.0,21284.0,0.09748226]
[1673988851296,0.320987,21287.0,21284.0,0.09748226]
[1673988851529,0.320987,21286.0,21284.0,0.02268226]
[1673988851784,0.320987,21285.0,21284.0,0.02268226]
[1673988852036,0.329487,21285.0,21284.0,0.02268226]
[1673988852804,0.799301,21285.0,21284.0,0.02268226]
[1673988853062,0.890301,21285.0,21284.0,0.02268226]
[1673988853315,0.329487,21285.0,21284.0,0.02268226]
[1673988853606,0.420487,21285.0,21282.0,0.18428687]
[1673988853832,0.0085,21285.0,21282.0,0.18428687]
[1673988854058,0.0085,21285.0,21281.0,0.469884]
[1673988854308,0.091,21285.0,21282.0,1.013957]
[1673988854806,0.04868631,21287.0,21283.0,0.0746]
[1673988855088,0.04868631,21287.0,21284.0,0.469834]
[1673988855318,0.04868631,21287.0,21284.0,0.93967]
[1673988855824,0.04868631,21287.0,21284.0,0.469836]
[1673988856079,0.4886562,21287.0,21283.0,0.469836]
[1673988856330,0.83421618,21287.0,21282.0,1.05318398]
[1673988856573,0.87652987,21287.0,21282.0,1.05318398]
[1673988856820,1.34630087,21287.0,21282.0,1.05318398]
[1673988857074,0.320987,21286.0,21282.0,0.58332398]
[1673988857335,0.320987,21285.0,21282.0,1.05319898]
[1673988857595,0.43655998,21286.0,21282.0,1.05319898]
[1673988857824,1.34629987,21287.0,21282.0,1.05319898]
[1673988858640,0.90973989,21287.0,21282.0,1.05380398]
[1673988858877,0.34896989,21287.0,21283.0,0.0748]
[1673988859104,0.34896989,21287.0,21284.0,0.469835]
[1673988859380,1.28851389,21287.0,21282.0,0.58392398]
[1673988859628,0.329487,21286.0,21282.0,1.05378798]
[1673988859966,1.38465498,21286.0,21282.0,0.58392398]
[1673988860907,0.320987,21285.0,21282.0,0.50912398]
[1673988861166,0.0085,21284.0,21282.0,0.50912398]
[1673988861427,0.478337,21284.0,21282.0,0.50912398]
[1673988861705,0.469837,21284.0,21281.0,0.0747]
[1673988861951,1.37623298,21284.0,21279.0,0.544733]
[1673988862206,0.37093508,21283.0,21279.0,0.0748]
[1673988862473,1.260757,21282.0,21278.0,0.52470437]
[1673988862723,0.320987,21281.0,21278.0,0.52470437]
[1673988862957,0.90644498,21282.0,21278.0,0.99467037]
[1673988863207,0.90644498,21282.0,21278.0,1.46463837]
[1673988863208,0.43655998,21282.0,21278.0,1.46463837]
[1673988863464,1.74724106,21283.0,21278.0,1.46463837]
[1673988863720,0.0085,21282.0,21278.0,1.46463837]
[1673988864212,0.0085,21282.0,21278.0,0.939934]
[1673988864465,1.27736906,21283.0,21278.0,0.939934]
[1673988864711,0.091,21282.0,21278.0,0.939934]
[1673988864965,0.091,21282.0,21279.0,0.47527983]
[1673988865241,0.10988635,21282.0,21280.0,0.469924]
[1673988865964,0.01888635,21282.0,21280.0,0.469924]
[1673988866314,0.10988635,21282.0,21279.0,0.94521183]
[1673988866505,0.48876835,21282.0,21279.0,0.40107983]
[1673988866731,0.329487,21281.0,21279.0,0.40107983]
[1673988866990,0.0085,21281.0,21279.0,0.40107983]
[1673988867226,0.478415,21281.0,21279.0,0.40107983]
[1673988868005,0.478415,21281.0,21277.0,0.544776]
[1673988868254,0.43655998,21281.0,21278.0,0.469957]
[1673988868515,0.42363759,21282.0,21277.0,0.544775]
[1673988868763,0.42363759,21282.0,21277.0,0.0748]
[1673988868764,1.41308012,21282.0,21277.0,0.0748]
[1673988869030,0.75754698,21281.0,21276.0,0.469993]
[1673988869256,0.75754698,21281.0,21274.0,0.02589953]
[1673988869257,0.0747,21279.0,21274.0,0.02589953]
[1673988869517,2.17598698,21278.0,21274.0,0.02589953]
[1673988869770,0.320987,21277.0,21274.0,0.02589953]
[1673988870077,0.320987,21276.0,21274.0,0.02589953]
[1673988870317,0.320987,21275.0,21274.0,0.02089953]
[1673988870547,0.48569524,21279.0,21274.0,1.53918304]
[1673988870807,0.04913526,21279.0,21277.0,0.0748]
[1673988871311,0.93987,21280.0,21277.0,0.0748]
[1673988871569,0.320987,21279.0,21276.0,0.0748]
[1673988871808,0.320987,21278.0,21276.0,0.0748]
[1673988872054,0.091,21279.0,21276.0,0.0748]
[1673988872305,0.091,21279.0,21275.0,0.544823]
[1673988872792,0.469957,21279.0,21275.0,0.0748]
[1673988873042,1.72156436,21279.0,21275.0,0.0748]
[1673988873300,0.0085,21278.0,21274.0,0.01989953]
[1673988873548,0.90653598,21278.0,21274.0,0.01989953]
[1673988873808,1.25160736,21279.0,21275.0,0.0748]
[1673988874089,0.43610138,21279.0,21275.0,0.544832]
[1673988874316,0.43610138,21279.0,21276.0,0.0748]
[1673988874567,0.04998922,21280.0,21278.0,0.0748]
[1673988874812,0.04998922,21280.0,21279.0,0.0746]
[1673988875103,0.40288582,21282.0,21279.0,0.0746]
[1673988875337,0.40288582,21282.0,21280.0,0.0744]
[1673988875839,0.40288582,21282.0,21280.0,0.07455937]
[1673988876091,0.40288582,21282.0,21280.0,0.544323]
[1673988876351,0.01888635,21282.0,21281.0,0.0748]
[1673988876610,0.01888635,21282.0,21281.0,0.865689]
[1673988876851,0.01888635,21282.0,21281.0,0.86584835]
[1673988877110,0.10988635,21282.0,21281.0,0.86584835]
[1673988877366,0.01888635,21282.0,21281.0,0.86584835]
[1673988877907,0.03788635,21282.0,21280.0,0.51744914]
[1673988878400,0.01888635,21282.0,21280.0,0.51744914]
[1673988879157,0.10888635,21282.0,21278.0,0.544749]
[1673988879395,0.01888635,21282.0,21278.0,0.0748]
[1673988879652,0.10988635,21282.0,21278.0,0.544764]
[1673988879912,0.01888635,21282.0,21279.0,0.57570019]
[1673988880197,0.10988635,21282.0,21281.0,0.0748]
[1673988880430,0.10988635,21282.0,21281.0,1.409791]
[1673988880670,0.01888635,21282.0,21281.0,1.709791]
[1673988880917,0.01888635,21282.0,21281.0,1.86116359]
[1673988880918,0.09108635,21282.0,21281.0,1.86116359]
[1673988881174,0.0021335,21288.0,21281.0,2.19239264]
[1673988881477,0.0485229,21286.0,21282.0,0.620987]
[1673988881698,0.33369044,21287.0,21285.0,0.0744]
[1673988881938,0.04859715,21287.0,21285.0,0.0744]
[1673988882200,0.0021335,21288.0,21285.0,0.0744]
[1673988882438,0.0021335,21288.0,21285.0,1.01402]
[1673988882943,0.008,21287.0,21285.0,1.02002]
[1673988883203,0.008,21287.0,21285.0,1.01402]
[1673988883446,0.0101335,21288.0,21285.0,1.52777933]
[1673988883702,0.0021335,21288.0,21286.0,0.320987]
[1673988883963,0.0021335,21288.0,21287.0,0.0748]
[1673988885489,0.0101335,21288.0,21287.0,1.01434]
[1673988885515,0.0021335,21288.0,21287.0,1.01434]
[1673988885746,0.0101335,21288.0,21287.0,1.02034]
[1673988886243,0.0101335,21288.0,21287.0,1.341327]
[1673988886994,0.0101335,21288.0,21287.0,1.02034]
[1673988888053,0.0101335,21288.0,21285.0,1.05095733]
[1673988888054,0.11626745,21286.0,21285.0,1.05095633]
[1673988888776,0.11626745,21286.0,21285.0,1.52077033]
[1673988889022,0.11626745,21286.0,21285.0,1.5208465]
[1673988889279,0.11626745,21286.0,21285.0,1.8418335]
[1673988889524,0.11626745,21286.0,21285.0,1.8708335]
[1673988890316,0.11626745,21286.0,21285.0,1.40094333]
[1673988890540,0.11626745,21286.0,21285.0,1.87075733]
[1673988890783,0.11626745,21286.0,21285.0,1.86575733]
[1673988891033,0.11626745,21286.0,21285.0,1.54477033]
[1673988891275,0.11626745,21286.0,21285.0,1.47537033]
[1673988891521,0.11626745,21286.0,21285.0,1.79635733]
[1673988891797,0.11626745,21286.0,21285.0,1.87115733]
[1673988892814,0.11626745,21286.0,21285.0,2.17115733]
[1673988893069,0.11626745,21286.0,21285.0,2.24595733]
[1673988893315,0.11626745,21286.0,21285.0,2.68015733]
[1673988893825,0.0021335,21288.0,21286.0,0.15]
[1673988894079,0.0021335,21288.0,21287.0,2.349067]
[1673988894582,0.0021335,21288.0,21287.0,3.16550823]
[1673988895614,0.0021335,21288.0,21287.0,3.25750823]
[1673988896354,0.0021335,21288.0,21287.0,3.16550823]
[1673988896671,0.0021335,21288.0,21287.0,3.1670318]
[1673988897122,0.0021335,21288.0,21287.0,3.2590318]
[1673988897372,0.0021335,21288.0,21287.0,3.1670318]
[1673988897618,0.0021335,21288.0,21287.0,3.2590318]
[1673988897911,0.0021335,21288.0,21287.0,3.1670318]
[1673988898117,0.0021335,21288.0,21287.0,3.2590318]
[1673988898377,0.0021335,21288.0,21287.0,3.1670318]
[1673988898865,0.0021335,21288.0,21287.0,3.2590318]
[1673988899361,0.0021335,21288.0,21287.0,2.9590318]
[1673988899616,0.0021335,21288.0,21287.0,3.2590318]
[1673988900366,3.5e-06,21288.0,21287.0,3.2590318]
[1673988900613,3.5e-06,21288.0,21287.0,3.5434318]
[1673988901652,0.02879106,21291.0,21287.0,4.28215741]
[1673988901892,0.02879106,21291.0,21290.0,0.4333]
[1673988902140,0.02879106,21291.0,21290.0,2.93317917]
[1673988902383,0.02879106,21291.0,21290.0,3.32685405]
[1673988903671,1.106e-05,21291.0,21290.0,3.32685405]
[1673988904251,0.00213414,21295.0,21291.0,0.28187871]
[1673988904404,0.00213414,21295.0,21294.0,0.4333]
[1673988904665,0.00213414,21295.0,21294.0,2.463132]
[1673988904908,0.00213414,21295.0,21294.0,2.89477876]
[1673988905407,1.18092457,21297.0,21295.0,0.15]
[1673988905661,1.18092457,21297.0,21296.0,2.313]
[1673988905915,1.13111424,21297.0,21296.0,2.179]
[1673988906414,1.13111424,21297.0,21296.0,1.879]
[1673988906664,1.13111424,21297.0,21296.0,2.17914485]
[1673988907174,1.13111424,21297.0,21296.0,2.10454485]
[1673988907418,1.13111424,21297.0,21296.0,2.56598049]
[1673988907671,1.13111424,21297.0,21296.0,3.23345441]
[1673988907938,1.13111424,21297.0,21296.0,2.99868441]
[1673988908197,1.13111424,21297.0,21296.0,2.56598049]
[1673988908198,0.84376024,21297.0,21296.0,2.56598049]
[1673988908427,0.40155615,21299.0,21297.0,0.30116154]
[1673988908678,0.40155615,21299.0,21298.0,2.329168]
[1673988908927,0.40155615,21299.0,21298.0,2.76016834]
[1673988909180,0.40155615,21299.0,21298.0,2.329168]
[1673988909689,0.05176024,21303.0,21299.0,0.15]
[1673988909949,0.05176024,21303.0,21302.0,0.149]
[1673988910198,0.05176024,21303.0,21302.0,1.878304]
[1673988910513,0.002718,21303.0,21302.0,2.178304]
[1673988910715,0.002718,21303.0,21302.0,2.17997775]
[1673988910958,0.002718,21303.0,21302.0,1.821304]
[1673988911210,0.002718,21303.0,21302.0,1.729304]
[1673988911470,0.002718,21303.0,21302.0,1.821304]
[1673988911771,0.002718,21303.0,21302.0,2.029304]
[1673988911988,0.002718,21303.0,21302.0,2.195504]
[1673988912496,0.002718,21303.0,21302.0,2.65718541]
[1673988912762,0.002718,21303.0,21302.0,2.28298541]
[1673988915291,0.008618,21303.0,21302.0,2.28298541]
[1673988917333,0.008618,21303.0,21302.0,2.58298541]
[1673988920542,0.008618,21303.0,21302.0,2.65738541]
[1673988921285,0.003618,21303.0,21302.0,2.65738541]
[1673988921536,0.003618,21303.0,21302.0,2.195704]
[1673988921790,0.59388262,21303.0,21302.0,0.092]
[1673988922039,1.86220362,21303.0,21293.0,0.97777272]
[1673988922304,0.6,21299.0,21293.0,0.50814172]
[1673988922593,1.68955184,21298.0,21293.0,0.50814172]
[1673988922831,1.68955184,21298.0,21293.0,0.01992677]
[1673988922832,0.320987,21297.0,21293.0,0.01992677]
[1673988923132,0.395487,21296.0,21293.0,0.01992677]
[1673988923345,0.320987,21295.0,21293.0,0.01992677]
[1673988923584,0.395787,21294.0,21293.0,0.01992677]
[1673988923842,0.940202,21294.0,21293.0,0.01992677]
[1673988924102,1.37817684,21294.0,21293.0,0.01992677]
[1673988924620,1.52817684,21294.0,21293.0,0.01992677]
[1673988925370,1.96504626,21294.0,21293.0,0.01992677]
[1673988925678,2.26504626,21294.0,21293.0,0.01992677]
[1673988925931,2.35604626,21294.0,21293.0,0.01992677]
[1673988926415,2.05604626,21294.0,21293.0,0.01992677]
[1673988926647,1.96504626,21294.0,21293.0,0.01992677]
[1673988927142,2.26504626,21294.0,21293.0,0.01992677]
[1673988928152,0.01978858,21292.0,21284.0,0.55294685]
[1673988928392,0.0748,21287.0,21284.0,0.55294685]
[1673988928637,0.0748,21287.0,21284.0,0.01767245]
[1673988928897,0.320987,21286.0,21284.0,0.01767245]
[1673988929158,0.320987,21285.0,21284.0,0.01767245]
[1673988929652,0.395687,21285.0,21284.0,0.01767245]
[1673988931432,0.420487,21285.0,21284.0,0.01767245]
[1673988932443,0.890301,21285.0,21284.0,0.01767245]
[1673988932709,0.874101,21285.0,21284.0,0.01767245]
[1673988932955,0.890301,21285.0,21284.0,0.01767245]